bitfinex/quotes_SOLUSD_20250528
["timestamp","ask_amount","ask_price","bid_price","bid_amount"]
[1748460771420,20.73887786,169.93,169.89,23.33426175]
[1748460771603,20.73887786,169.93,169.9,23.33426175]
[1748460773620,20.59671629,169.93,169.9,23.33426175]
[1748460774428,20.59671629,169.93,169.91,23.33426175]
[1748460774936,14.71194021,169.93,169.91,23.33426175]
[1748460775145,14.71194021,169.93,169.92,23.33426175]
[1748460776812,14.71194021,169.93,169.89,37.8599]
[1748460777034,14.71194021,169.93,169.9,23.33426175]
[1748460777323,14.71194021,169.93,169.89,61.19416175]
[1748460778226,20.59671629,169.93,169.89,61.19416175]
[1748460778425,20.59671629,169.93,169.9,23.33426175]
[1748460780416,14.71194021,169.93,169.91,23.33426175]
[1748460782333,5.88408355,169.95,169.92,23.33426175]
[1748460782510,5.88408355,169.95,169.94,23.33426175]
[1748460785457,5.88408355,169.95,169.93,36.2]
[1748460785629,43.92855418,169.95,169.9,9.44]
[1748460785814,20.59671629,169.93,169.9,36.2]
[1748460786316,69.93097804,169.93,169.89,37.8599]
[1748460786622,46.59671629,169.93,169.92,23.33426175]
[1748460787016,46.59671629,169.93,169.92,36.2]
[1748460788637,20.59671629,169.93,169.92,36.2]
[1748460790143,14.71194021,169.93,169.92,36.2]
[1748460791622,14.71194021,169.93,169.9,18.64964886]
[1748460791846,23.33426175,169.92,169.89,36.2]
[1748460792341,5.88546877,169.91,169.89,36.2]
[1748460792529,5.88546877,169.91,169.9,41.98391061]
[1748460793543,95.38515383,169.92,169.9,43.54971061]
[1748460793739,5.88515383,169.92,169.91,23.33426175]
[1748460794316,5.88408355,169.95,169.91,41.98391061]
[1748460794540,5.88408355,169.95,169.94,41.98391061]
[1748460796519,20.59015308,169.99,169.95,18.64964886]
[1748460796737,20.59015308,169.99,169.95,78.18391061]
[1748460797518,20.59015308,169.99,169.96,23.33426175]
[1748460797921,20.59015308,169.99,169.97,23.33426175]
[1748460798548,14.7074541,169.99,169.97,23.33426175]
[1748460798940,14.7074541,169.99,169.96,23.33426175]
[1748460800626,14.7074541,169.99,169.97,23.33426175]
[1748460801133,14.7074541,169.99,169.96,41.98391061]
[1748460801960,14.7074541,169.99,169.96,23.33426175]
[1748460803050,38.04171585,169.99,169.93,18.64964886]
[1748460803226,23.33426175,169.98,169.94,36.18]
[1748460803432,14.7074541,169.99,169.94,59.51426175]
[1748460803634,38.04171585,169.99,169.95,23.33426175]
[1748460804537,23.33426175,169.96,169.92,9.44]
[1748460804742,23.33426175,169.96,169.92,45.62]
[1748460804942,23.33426175,169.96,169.92,36.18]
[1748460805252,23.33426175,169.96,169.92,59.51426175]
[1748460805432,23.33426175,169.96,169.92,36.18]
[1748460805832,23.47642332,169.95,169.91,23.33426175]
[1748460806038,89.5,169.94,169.91,59.53426175]
[1748460806742,5.88477608,169.93,169.91,59.53426175]
[1748460807561,5.88477608,169.93,169.91,23.33426175]
[1748460807962,20.59671629,169.93,169.9,36.18]
[1748460808354,20.59671629,169.93,169.89,59.51426175]
[1748460808757,133.43097804,169.93,169.89,59.51426175]
[1748460808963,133.43097804,169.93,169.89,36.18]
[1748460809149,133.43097804,169.93,169.89,59.51426175]
[1748460809868,133.43097804,169.93,169.89,23.33426175]
[1748460810163,133.43097804,169.93,169.89,36.18]
[1748460810551,133.43097804,169.93,169.89,59.51426175]
[1748460811249,110.09671629,169.93,169.91,23.33426175]
[1748460811957,110.09671629,169.93,169.9,23.33426175]
[1748460812668,110.09671629,169.93,169.91,23.33426175]
[1748460812855,110.09671629,169.93,169.92,23.33426175]
[1748460814242,20.59671629,169.93,169.88,18.64964886]
[1748460814449,20.59671629,169.93,169.89,36.2]
[1748460814646,43.93097804,169.93,169.9,36.2]
[1748460815070,20.59671629,169.93,169.9,36.2]
[1748460815368,73.35485846,169.93,169.89,36.2]
[1748460815551,89.5,169.92,169.89,36.2]
[1748460816473,5.88546877,169.91,169.89,36.2]
[1748460817969,20.59914071,169.91,169.89,36.2]
[1748460818656,20.59914071,169.91,169.88,23.33426175]
[1748460818865,20.59914071,169.91,169.89,36.2]
[1748460820165,20.59914071,169.91,169.89,59.53426175]
[1748460820365,20.59914071,169.91,169.9,23.33426175]
[1748460820870,20.59914071,169.91,169.9,59.53426175]
[1748460821173,5.88546877,169.91,169.9,78.18391061]
[1748460821850,20.59606586,169.94,169.9,78.18391061]
[1748460822049,20.59606586,169.94,169.91,23.33426175]
[1748460823846,20.59606586,169.94,169.9,78.18391061]
[1748460824046,43.93032761,169.94,169.9,59.53426175]
[1748460825150,20.59606586,169.94,169.9,59.53426175]
[1748460826076,133.43032761,169.94,169.9,59.53426175]
[1748460826462,133.43032761,169.94,169.9,36.2]
[1748460827281,23.33426175,169.92,169.89,36.2]
[1748460828082,5.88546877,169.91,169.89,36.2]
[1748460828458,5.88546877,169.91,169.9,23.33426175]
[1748460829684,5.88546877,169.91,169.89,36.2]
[1748460829977,5.88546877,169.91,169.9,23.33426175]
[1748460830182,20.59671629,169.93,169.9,23.33426175]
[1748460830372,20.59671629,169.93,169.92,23.33426175]
[1748460830572,5.88477608,169.93,169.92,41.98391061]
[1748460830767,14.70996272,169.96,169.93,18.64964886]
[1748460830968,29.4100347,170.01,169.95,41.98391061]
[1748460831167,29.4100347,170.01,169.97,23.33426175]
[1748460831168,14.70738534,169.99,169.97,23.33426175]
[1748460831362,14.70738534,169.99,169.98,23.33426175]
[1748460831954,14.70738534,169.99,169.97,23.33426175]
[1748460832556,14.70738534,169.99,169.98,23.33426175]
[1748460834374,14.70738534,169.99,169.97,18.64964886]
[1748460834573,14.70738534,169.99,169.98,23.33426175]
[1748460836680,73.32849071,170.02,169.98,23.33426175]
[1748460838000,73.32849071,170.02,169.97,18.64964886]
[1748460838165,23.47642332,169.99,169.94,18.64964886]
[1748460838369,23.47642332,169.99,169.94,23.33426175]
[1748460838598,23.33426175,169.97,169.93,59.51426175]
[1748460838766,0.14216157,170.01,169.92,9.44]
[1748460838767,20.59429243,169.95,169.92,68.95426175]
[1748460839164,20.59429243,169.95,169.93,23.33426175]
[1748460839468,20.59429243,169.95,169.92,68.95426175]
[1748460839775,20.59429243,169.95,169.93,23.33426175]
[1748460841696,20.59429243,169.95,169.92,68.95426175]
[1748460842192,20.59429243,169.95,169.93,23.33426175]
[1748460843079,20.59429243,169.95,169.92,68.95426175]
[1748460844069,0.14216157,169.94,169.89,23.33426175]
[1748460844398,112.83426175,169.93,169.89,59.51426175]
[1748460844705,89.5,169.93,169.89,59.51426175]
[1748460844880,89.5,169.93,169.89,23.33426175]
[1748460845077,20.59792843,169.92,169.89,23.33426175]
[1748460846094,20.59792843,169.92,169.89,59.51426175]
[1748460846877,20.59792843,169.92,169.89,23.33426175]
[1748460847076,20.60035314,169.9,169.87,9.44]
[1748460847314,20.60035314,169.9,169.88,36.18]
[1748460847668,20.60035314,169.9,169.88,23.33426175]
[1748460847871,5.88581518,169.9,169.89,23.33426175]
[1748460849738,5.88581518,169.9,169.89,59.51426175]
[1748460850715,5.88581518,169.9,169.89,78.16391061]
[1748460851133,89.5,169.91,169.9,18.64964886]
[1748460851338,5.88408355,169.95,169.92,18.64964886]
[1748460851622,5.88408355,169.95,169.94,41.98391061]
[1748460852015,43.92249704,170.0,169.94,41.98391061]
[1748460852217,43.92249704,170.0,169.96,23.33426175]
[1748460852645,0.14216157,169.99,169.95,59.51426175]
[1748460853040,20.59065772,169.98,169.95,59.51426175]
[1748460854631,20.59065772,169.98,169.96,23.33426175]
[1748460857652,20.59065772,169.98,169.95,36.18]
[1748460857841,20.59065772,169.98,169.96,23.33426175]
[1748460858064,20.59065772,169.98,169.95,59.51426175]
[1748460858228,20.59065772,169.98,169.95,23.33426175]
[1748460858432,23.47642332,169.97,169.93,36.18]
[1748460858631,23.33426175,169.96,169.93,36.18]
[1748460859164,112.97642332,169.97,169.93,36.18]
[1748460859372,20.59308071,169.96,169.93,36.18]
[1748460859667,20.59308071,169.96,169.93,59.51426175]
[1748460859857,20.59308071,169.96,169.93,36.18]
[1748460860164,43.92734246,169.96,169.93,36.18]
[1748460860668,0.14216157,169.95,169.92,23.33426175]
[1748460862828,5.88442979,169.94,169.92,23.33426175]
[1748460863447,5.88442979,169.94,169.93,23.33426175]
[1748460864151,5.88442979,169.94,169.93,41.98391061]
[1748460865050,20.59308071,169.96,169.93,41.98391061]
[1748460865246,20.59308071,169.96,169.94,23.33426175]
[1748460866358,20.59308071,169.96,169.93,23.33426175]
[1748460868378,20.59308071,169.96,169.93,59.51426175]
[1748460870641,20.59308071,169.96,169.93,36.18]
[1748460870884,20.59308071,169.96,169.93,59.51426175]
[1748460872374,20.59308071,169.96,169.95,23.33426175]
[1748460872375,5.88373734,169.96,169.95,23.33426175]
[1748460872586,89.5,169.97,169.95,23.33426175]
[1748460872587,104.20733423,169.99,169.95,41.98391061]
[1748460872742,5.88304506,169.98,169.96,54.82964886]
[1748460872941,95.38276803,169.99,169.97,43.63091061]
[1748460873243,5.88276803,169.99,169.98,23.33426175]
[1748460874351,14.70491667,170.02,169.99,18.64964886]
[1748460874686,14.70491667,170.02,170.0,59.51426175]
[1748460883855,14.70491667,170.02,170.01,23.33426175]
[1748460884057,5.88131506,170.03,170.01,23.33426175]
[1748460885485,5.88131506,170.03,170.02,23.33426175]
[1748460885657,5.88131506,170.03,170.02,59.51426175]
[1748460886883,5.88131506,170.03,170.02,78.16391061]
[1748460888502,5.87993179,170.07,170.03,18.64964886]
[1748460888691,5.87993179,170.07,170.05,23.33426175]
[1748460889574,20.57976127,170.07,170.05,23.33426175]
[1748460890177,20.57976127,170.07,170.04,36.18]
[1748460890178,20.57976127,170.07,170.04,59.51426175]
[1748460893196,20.57976127,170.07,170.05,23.33426175]
[1748460894203,20.57976127,170.07,170.04,59.51426175]
[1748460896818,20.57976127,170.07,170.05,23.33426175]
[1748460901397,20.57976127,170.07,170.04,59.51426175]
[1748460901599,20.57976127,170.07,170.02,23.33426175]
[1748460901600,23.33426175,170.06,170.02,23.33426175]
[1748460901800,23.33426175,170.06,169.98,23.33426175]
[1748460901801,23.33426175,170.03,169.98,23.33426175]
[1748460902091,23.33426175,170.03,169.99,36.16]
[1748460902295,23.33426175,170.03,169.98,78.14391061]
[1748460902591,23.33426175,170.02,169.98,78.14391061]
[1748460903001,20.58702429,170.01,169.98,78.14391061]
[1748460903816,23.33426175,169.99,169.95,9.44]
[1748460903997,23.33426175,169.99,169.94,41.98391061]
[1748460904197,23.33426175,169.98,169.94,18.64964886]
[1748460904503,23.33426175,169.98,169.94,54.80964886]
[1748460905199,20.59186914,169.97,169.94,54.80964886]
[1748460905609,23.33426175,169.96,169.93,37.7402]
[1748460905804,23.33426175,169.96,169.91,41.98391061]
[1748460906010,23.33426175,169.95,169.92,36.16]
[1748460906191,23.33426175,169.96,169.92,36.16]
[1748460906386,23.33426175,169.96,169.91,41.98391061]
[1748460906388,23.33426175,169.95,169.91,18.64964886]
[1748460906714,23.33426175,169.94,169.9,9.42]
[1748460906923,23.33426175,169.93,169.89,23.33426175]
[1748460907218,43.93219018,169.92,169.88,27.5802]
[1748460907414,20.59792843,169.92,169.88,50.91446175]
[1748460907919,43.93219018,169.92,169.88,1.5802]
[1748460908103,23.33426175,169.91,169.88,1.5802]
[1748460908817,5.88581518,169.9,169.88,1.5802]
[1748460910820,14.7106866,169.95,169.9,18.64964886]
[1748460911109,14.7106866,169.95,169.92,23.33426175]
[1748460911489,14.7106866,169.95,169.93,23.33426175]
[1748460911687,5.88373734,169.96,169.93,23.33426175]
[1748460912395,5.88373734,169.96,169.92,59.49426175]
[1748460912396,20.59308071,169.96,169.92,59.49426175]
[1748460914825,20.59308071,169.96,169.93,23.33426175]
[1748460915992,20.59308071,169.96,169.92,59.49426175]
[1748460916208,23.33426175,169.95,169.91,23.33426175]
[1748460916408,23.33426175,169.93,169.88,1.5802]
[1748460916616,23.33426175,169.92,169.89,18.64964886]
[1748460916817,23.33426175,169.93,169.89,41.98391061]
[1748460917006,112.83426175,169.94,169.89,41.98391061]
[1748460917207,89.5,169.94,169.91,23.33426175]
[1748460917408,89.5,169.94,169.93,23.33426175]
[1748460917606,20.59308071,169.96,169.93,23.33426175]
[1748460917919,14.70934337,169.96,169.93,23.33426175]
[1748460921010,23.33426175,169.94,169.91,36.18]
[1748460921615,23.47642332,169.95,169.9,23.33426175]
[1748460921917,43.92976603,169.94,169.89,54.82964886]
[1748460922124,43.92976603,169.94,169.89,78.16391061]
[1748460922508,43.92976603,169.94,169.89,41.98391061]
[1748460924436,23.33426175,169.92,169.87,41.98391061]
[1748460924631,0.14216157,169.92,169.88,23.33426175]
[1748460925515,0.14216157,169.92,169.89,23.33426175]
[1748460927469,0.14216157,169.92,169.88,23.33426175]
[1748460927470,20.59914071,169.91,169.88,23.33426175]
[1748460929605,0.28432314,169.9,169.84,1.6298]
[1748460929810,23.33426175,169.89,169.84,24.96406175]
[1748460930021,89.5,169.89,169.85,23.33426175]
[1748460930213,89.5,169.89,169.86,23.33426175]
[1748460930937,89.5,169.89,169.85,23.33426175]
[1748460931237,20.60277842,169.88,169.85,23.33426175]
[1748460931431,20.60277842,169.88,169.84,24.96406175]
[1748460931632,20.60277842,169.88,169.81,9.44]
[1748460931633,23.33426175,169.87,169.81,9.44]
[1748460931844,23.33426175,169.87,169.83,23.33426175]
[1748460932055,43.93704017,169.88,169.83,23.33426175]
[1748460935945,20.60277842,169.88,169.84,23.33426175]
[1748460936319,43.93704017,169.88,169.84,23.33426175]
[1748460936831,43.93704017,169.88,169.83,23.33426175]
[1748460937844,43.93704017,169.88,169.82,54.82964886]
[1748460937845,43.93704017,169.88,169.84,23.33426175]
[1748460939038,44.29144017,169.88,169.82,54.82964886]
[1748460939255,44.29144017,169.88,169.83,23.33426175]
[1748460940039,0.14216157,169.87,169.82,18.64964886]
[1748460940356,23.33426175,169.85,169.81,9.44]
[1748460940854,23.33426175,169.85,169.8,43.58731061]
[1748460940855,23.33426175,169.84,169.8,43.58731061]
[1748460941150,44.08284074,169.85,169.8,43.58731061]
[1748460941346,44.08284074,169.85,169.81,23.33426175]
[1748460941553,20.60641742,169.85,169.83,23.33426175]
[1748460942470,5.88754783,169.85,169.82,41.98391061]
[1748460944251,5.88754783,169.85,169.83,23.33426175]
[1748460944728,20.60641742,169.85,169.82,18.64964886]
[1748460944931,20.60641742,169.85,169.82,41.98391061]
[1748460945149,20.60641742,169.85,169.8,1.6034]
[1748460945150,23.33426175,169.83,169.8,1.6034]
[1748460945359,23.33426175,169.81,169.77,18.64964886]
[1748460945653,23.33426175,169.8,169.77,18.64964886]
[1748460945950,23.33426175,169.8,169.76,70.48046175]
[1748460945951,23.33426175,169.79,169.75,18.64964886]
[1748460946444,26.0,169.81,169.75,23.33426175]
[1748460946670,0.14216157,169.8,169.76,23.33426175]
[1748460946833,23.33426175,169.79,169.74,18.64964886]
[1748460947333,23.33426175,169.79,169.75,23.33426175]
[1748460947334,5.88997526,169.78,169.75,23.33426175]
[1748460948335,5.88997526,169.78,169.73,23.33426175]
[1748460948336,43.94917516,169.78,169.73,23.33426175]
[1748460948644,43.94917516,169.78,169.72,18.64964886]
[1748460948645,23.33426175,169.76,169.72,18.64964886]
[1748460949149,23.33426175,169.75,169.71,23.33426175]
[1748460949328,20.61977141,169.74,169.71,23.33426175]
[1748460949656,20.61977141,169.74,169.69,18.64964886]
[1748460949852,20.61977141,169.74,169.72,23.33426175]
[1748460951334,43.95403316,169.74,169.7,59.51426175]
[1748460952149,43.95403316,169.74,169.7,36.18]
[1748460952342,43.95403316,169.74,169.69,41.98391061]
[1748460952834,43.95403316,169.74,169.7,23.33426175]
[1748460953032,43.95403316,169.74,169.69,18.64964886]
[1748460953256,43.95403316,169.74,169.7,23.33426175]
[1748460953430,43.95403316,169.74,169.66,35.44]
[1748460953431,23.33426175,169.71,169.66,35.44]
[1748460953637,23.33426175,169.7,169.67,18.64964886]
[1748460953847,89.5,169.73,169.67,18.64964886]
[1748460954155,23.33426175,169.7,169.67,18.64964886]
[1748460954348,89.5,169.73,169.67,18.64964886]
[1748460954349,23.33426175,169.71,169.67,18.64964886]
[1748460955349,5.89275191,169.7,169.67,18.64964886]
[1748460956174,29.22701366,169.7,169.67,18.64964886]
[1748460957241,5.89275191,169.7,169.67,18.64964886]
[1748460958267,23.33426175,169.69,169.64,18.64964886]
[1748460958565,23.33426175,169.68,169.64,41.98391061]
[1748460959133,23.33426175,169.69,169.64,18.64964886]
[1748460959359,29.22805558,169.67,169.64,18.64964886]
[1748460960059,43.96254016,169.67,169.64,18.64964886]
[1748460960436,43.96254016,169.67,169.61,9.44]
[1748460960437,23.33426175,169.66,169.61,9.44]
[1748460960658,23.33426175,169.64,169.6,18.64964886]
[1748460960859,50.09724758,169.67,169.6,18.64964886]
[1748460960860,23.33426175,169.63,169.6,18.64964886]
[1748460961588,23.33426175,169.61,169.59,18.64964886]
[1748460961768,20.63435914,169.62,169.51,11.0356]
[1748460961769,23.33426175,169.6,169.51,11.0356]
[1748460961975,20.63435914,169.62,169.54,23.33426175]
[1748460962184,23.33426175,169.59,169.55,18.64964886]
[1748460962482,23.33426175,169.59,169.54,18.64964886]
[1748460962684,26.0,169.6,169.51,1.5956]
[1748460962895,23.33426175,169.58,169.51,1.5956]
[1748460963077,23.33426175,169.56,169.52,18.64964886]
[1748460963489,29.23222695,169.55,169.52,18.64964886]
[1748460963667,43.97713995,169.55,169.5,23.33426175]
[1748460963988,23.33426175,169.53,169.49,18.64964886]
[1748460964208,23.33426175,169.53,169.48,7.49740537]
[1748460964209,23.33426175,169.53,169.48,30.83166712]
[1748460964371,23.33426175,169.52,169.48,7.49740537]
[1748460964901,23.33426175,169.49,169.42,1.6898]
[1748460965105,23.33426175,169.47,169.42,25.02406175]
[1748460965310,23.33426175,169.46,169.42,1.6898]
[1748460965611,23.33426175,169.47,169.42,25.02406175]
[1748460965767,20.64774939,169.51,169.46,23.33426175]
[1748460966103,20.64774939,169.51,169.47,18.64964886]
[1748460966263,5.89935697,169.51,169.5,23.33426175]
[1748460966789,5.898661,169.53,169.51,18.64964886]
[1748460967186,5.898661,169.53,169.52,18.64964886]
[1748460967358,14.74534833,169.55,169.52,23.33426175]
[1748460967562,14.74534833,169.55,169.53,18.64964886]
[1748460967764,14.74534833,169.55,169.51,23.33426175]
[1748460967979,14.74534833,169.55,169.52,18.64964886]
[1748460968411,14.74534833,169.55,169.53,18.64964886]
[1748460968693,14.64534833,169.55,169.53,18.64964886]
[1748460969061,5.89761736,169.56,169.54,34.76417224]
[1748460970089,5.89761736,169.56,169.55,34.76417224]
[1748460970279,5.89622641,169.6,169.56,18.64964886]
[1748460970492,5.89622641,169.6,169.58,18.64964886]
[1748460971578,34.76417224,169.59,169.51,35.52]
[1748460971792,34.76417224,169.58,169.51,72.12]
[1748460972092,34.76417224,169.59,169.54,34.76417224]
[1748460972294,34.76417224,169.58,169.54,34.76417224]
[1748460972669,34.76417224,169.56,169.52,18.64964886]
[1748460972886,34.76417224,169.56,169.52,53.4138211]
[1748460973083,34.76417224,169.56,169.52,18.64964886]
[1748460973672,34.76417224,169.54,169.5,18.64964886]
[1748460973973,34.76417224,169.53,169.5,18.64964886]
[1748460974191,34.76417224,169.54,169.5,18.64964886]
[1748460974684,34.76417224,169.53,169.5,18.64964886]
[1748460975600,5.89900896,169.52,169.5,18.64964886]
[1748460975975,5.89900896,169.52,169.46,11.0348]
[1748460975976,40.6631812,169.52,169.47,53.4138211]
[1748460976177,40.6631812,169.52,169.49,18.64964886]
[1748460976479,20.64653137,169.52,169.5,34.76417224]
[1748460976690,20.64653137,169.52,169.51,53.4138211]
[1748460976914,5.89900896,169.52,169.51,53.4138211]
[1748460977069,5.89831308,169.54,169.51,53.4138211]
[1748460977278,5.89831308,169.54,169.53,53.4138211]
[1748460977877,14.74277509,169.58,169.54,18.64964886]
[1748460978100,14.74277509,169.58,169.51,18.933972]
[1748460979198,49.50694733,169.58,169.55,18.64964886]
[1748460979905,55.40386913,169.58,169.55,18.64964886]
[1748460980689,20.63969689,169.58,169.56,18.64964886]
[1748460981804,20.63969689,169.58,169.56,34.76417224]
[1748460982011,14.74277509,169.58,169.57,53.4138211]
[1748460982378,14.74277509,169.58,169.57,18.64964886]
[1748460982583,15.09717509,169.58,169.57,18.64964886]
[1748460984068,20.99409689,169.58,169.57,18.64964886]
[1748460984272,55.75826913,169.58,169.55,18.64964886]
[1748460984897,55.75826913,169.58,169.54,18.64964886]
[1748460985405,34.76417224,169.56,169.52,18.64964886]
[1748460985624,34.76417224,169.54,169.44,6.4888]
[1748460985797,34.76417224,169.53,169.5,18.64964886]
[1748460985977,87.15870592,169.58,169.51,18.64964886]
[1748460986412,34.76417224,169.54,169.51,18.64964886]
[1748460986577,87.15870592,169.58,169.51,18.64964886]
[1748460987408,34.76417224,169.54,169.51,18.64964886]
[1748460987775,34.76417224,169.54,169.5,18.64964886]
[1748460987776,28.76417224,169.54,169.5,18.64964886]
[1748460988087,5.898661,169.53,169.51,18.64964886]
[1748460988898,55.40948574,169.53,169.5,18.64964886]
[1748460989103,20.6453135,169.53,169.5,18.64964886]
[1748460989284,20.6453135,169.53,169.48,18.64964886]
[1748460989491,55.40948574,169.53,169.49,34.76417224]
[1748460989801,55.40948574,169.53,169.48,18.64964886]
[1748460989802,55.40948574,169.53,169.48,34.76417224]
[1748460990009,34.76417224,169.52,169.49,18.64964886]
[1748460990305,5.89970501,169.5,169.49,18.64964886]
[1748460990684,5.89970501,169.5,169.47,34.76417224]
[1748460990685,90.17731202,169.5,169.47,18.64964886]
[1748460990918,90.17731202,169.5,169.37,18.64964886]
[1748460990919,26.0,169.46,169.37,18.64964886]
[1748460991120,34.76417224,169.45,169.36,1.503]
[1748460991276,26.0,169.48,169.36,1.503]
[1748460991481,26.0,169.48,169.36,27.503]
[1748460991702,34.76417224,169.45,169.4,34.76417224]
[1748460991890,34.76417224,169.45,169.42,18.64964886]
[1748460992090,34.76417224,169.43,169.42,18.64964886]
[1748460992293,5.90214247,169.43,169.39,18.64964886]
[1748460992498,5.90214247,169.43,169.42,18.64964886]
[1748460992989,5.90214247,169.43,169.39,18.64964886]
[1748460993298,5.90214247,169.43,169.41,18.64964886]
[1748460993688,5.90214247,169.43,169.37,18.64964886]
[1748460993895,34.76417224,169.41,169.37,18.64964886]
[1748460994090,20.65749866,169.43,169.37,18.64964886]
[1748460994294,5.90318772,169.4,169.37,18.64964886]
[1748460994911,5.90318772,169.4,169.37,53.4138211]
[1748460995618,14.75313212,169.46,169.4,18.64964886]
[1748460995906,5.90144585,169.45,169.44,18.64964886]
[1748460996295,5.90144585,169.45,169.43,18.64964886]
[1748460996683,5.90144585,169.45,169.38,18.933972]
[1748460996903,5.90144585,169.45,169.43,18.64964886]
[1748460997283,20.65506048,169.45,169.38,18.933972]
[1748460997484,34.76417224,169.43,169.38,0.14216157]
[1748460997698,34.76417224,169.43,169.39,18.64964886]
[1748460998106,20.65506048,169.45,169.38,0.14216157]
[1748460998294,20.65871797,169.42,169.39,18.64964886]
[1748460998493,55.42289021,169.42,169.39,18.64964886]
[1748460998729,55.42289021,169.42,169.38,18.64964886]
[1748460998919,20.65871797,169.42,169.37,18.79181043]
[1748460999095,20.65871797,169.42,169.4,18.64964886]
[1748461000098,20.65871797,169.42,169.39,18.64964886]
[1748461000436,55.42289021,169.42,169.39,18.64964886]
[1748461000800,55.42289021,169.42,169.37,34.76417224]
[1748461001018,55.42289021,169.42,169.38,18.64964886]
[1748461001523,55.42289021,169.42,169.37,53.4138211]
[1748461001722,34.76417224,169.39,169.3,11.71469588]
[1748461001916,50.17117222,169.42,169.35,18.64964886]
[1748461002220,55.42289021,169.42,169.38,53.4138211]
[1748461002401,20.65871797,169.42,169.4,18.64964886]
[1748461004630,21.01311797,169.42,169.36,18.79181043]
[1748461004796,21.01311797,169.42,169.4,18.64964886]
[1748461005418,6.25689085,169.42,169.41,18.64964886]
[1748461006531,6.25689085,169.42,169.41,53.55598267]
[1748461007528,0.3544,169.42,169.41,53.69814424]
[1748461008523,0.3544,169.42,169.41,18.933972]
[1748461008721,6.25689085,169.42,169.41,79.69814424]
[1748461009246,6.25689085,169.42,169.41,18.933972]
[1748461009412,6.25689085,169.42,169.41,53.69814424]
[1748461012131,6.25689085,169.42,169.41,18.64964886]
[1748461012327,6.25689085,169.42,169.41,53.4138211]
[1748461012538,6.25689085,169.42,169.41,53.55598267]
[1748461013813,0.3544,169.42,169.41,53.69814424]
[1748461014133,0.3544,169.42,169.41,55.20024424]
[1748461014310,0.3544,169.42,169.41,20.29391043]
[1748461014510,6.25689085,169.42,169.41,55.05808267]
[1748461014909,0.3544,169.42,169.41,55.05808267]
[1748461015114,0.3544,169.42,169.41,55.20024424]
[1748461018549,6.25689085,169.42,169.41,55.20024424]
[1748461018734,0.3544,169.42,169.41,55.20024424]
[1748461019927,6.25689085,169.42,169.41,55.20024424]
[1748461020128,6.25689085,169.42,169.41,20.436072]
[1748461020338,6.25689085,169.42,169.41,18.64964886]
[1748461020650,6.25689085,169.42,169.41,53.69814424]
[1748461021752,0.3544,169.42,169.41,53.69814424]
[1748461022749,6.25689085,169.42,169.41,53.69814424]
[1748461023044,6.25689085,169.42,169.41,18.933972]
[1748461023249,6.25689085,169.42,169.41,18.64964886]
[1748461023427,41.02106309,169.42,169.41,18.64964886]
[1748461023823,41.02106309,169.42,169.37,0.28432314]
[1748461023824,55.77729021,169.42,169.37,18.64964886]
[1748461024153,21.01311797,169.42,169.39,18.64964886]
[1748461024448,55.77729021,169.42,169.39,18.64964886]
[1748461024615,34.76417224,169.4,169.37,18.64964886]
[1748461024818,21.01311797,169.42,169.37,53.4138211]
[1748461025032,34.76417224,169.41,169.37,53.4138211]
[1748461025525,21.01311797,169.42,169.37,53.4138211]
[1748461025724,34.76417224,169.41,169.37,53.4138211]
[1748461026134,55.77729021,169.42,169.37,53.4138211]
[1748461026347,34.76417224,169.41,169.37,53.4138211]
[1748461026823,34.76417224,169.41,169.34,18.933972]
[1748461027026,124.26417224,169.41,169.38,18.64964886]
[1748461027842,124.26417224,169.41,169.38,0.28432314]
[1748461028035,124.26417224,169.41,169.38,18.933972]
[1748461028243,5.90318772,169.4,169.38,18.933972]
[1748461028443,40.66735996,169.4,169.38,0.28432314]
[1748461028626,34.76417224,169.39,169.3,11.71469588]
[1748461028830,50.17709562,169.4,169.3,11.71469588]
[1748461028831,34.76417224,169.38,169.34,53.4138211]
[1748461029043,20.66115702,169.4,169.36,53.4138211]
[1748461029353,5.90318772,169.4,169.39,53.69814424]
[1748461029922,5.90318772,169.4,169.39,18.933972]
[1748461030122,20.65815539,169.43,169.4,18.933972]
[1748461030347,20.65815539,169.43,169.4,39.82304132]
[1748461031454,20.65815539,169.43,169.4,18.933972]
[1748461031951,20.65815539,169.43,169.4,0.28432314]
[1748461032158,20.65815539,169.43,169.4,18.933972]
[1748461032944,20.65815539,169.43,169.42,21.17339246]
[1748461033256,5.90214247,169.43,169.42,39.82304132]
[1748461034764,5.90144585,169.45,169.44,0.28432314]
[1748461034926,5.90144585,169.45,169.44,39.82304132]
[1748461036769,20.88906932,169.45,169.44,18.64964886]
[1748461038777,26.79051517,169.45,169.44,18.64964886]
[1748461039074,116.29051517,169.45,169.44,18.64964886]
[1748461039277,41.5441298,169.45,169.41,18.64964886]
[1748461039462,20.88906932,169.44,169.41,18.64964886]
[1748461039865,41.5441298,169.45,169.41,18.64964886]